bitfinex-derivatives/quotes_ETHF0:USTF0_20260312
["timestamp","ask_amount","ask_price","bid_price","bid_amount"]
[1773336420133,0.24183,2067.2,2066.3,2.50409122]
[1773336420134,2.89211004,2067.2,2066.3,2.50409122]
[1773336420326,2.89211004,2067.2,2066.5,2.50409122]
[1773336420528,2.89211004,2067.2,2066.4,6.34]
[1773336420529,2.87011004,2067.2,2066.8,0.022]
[1773336420930,2.87581704,2067.2,2066.8,0.022]
[1773336421131,2.91981704,2067.2,2066.8,0.022]
[1773336424836,3.16212704,2067.2,2066.8,0.022]
[1773336425037,2.91981704,2067.2,2066.8,0.022]
[1773336425231,3.16242704,2067.2,2066.8,0.022]
[1773336426035,2.91981704,2067.2,2066.8,0.022]
[1773336426530,3.97485271,2067.6,2066.8,2.50409122]
[1773336426830,3.95285271,2067.6,2067.4,0.022]
[1773336427031,1.41631695,2067.6,2067.4,0.022]
[1773336427434,0.00459598,2067.6,2067.4,2.52974994]
[1773336427733,0.00459598,2067.6,2066.9,6.339]
[1773336427734,2.65487602,2067.6,2066.9,14.91367535]
[1773336427932,2.65487602,2067.6,2067.0,2.50409122]
[1773336428535,2.65487602,2067.6,2067.0,2.50976775]
[1773336429932,2.65487602,2067.6,2067.0,0.00567653]
[1773336430128,2.65028004,2067.4,2066.6,8.57467535]
[1773336430436,2.65028004,2067.4,2066.7,8.84309122]
[1773336431236,2.65028004,2067.4,2066.8,2.50409122]
[1773336435541,2.65487602,2067.6,2066.8,2.50409122]
[1773336435742,2.65487602,2067.6,2066.9,2.50409122]
[1773336437336,2.67228004,2067.5,2066.9,2.50409122]
[1773336438444,0.022,2067.5,2066.9,2.50409122]
[1773336439346,0.022,2067.5,2067.1,2.50409122]
[1773336442042,0.00459598,2067.6,2067.1,2.50409122]
[1773336442442,2.55010054,2067.7,2067.4,0.022]
[1773336442443,2.17438149,2067.7,2067.4,0.022]
[1773336442642,2.17438149,2067.7,2067.2,0.022]
[1773336443049,2.47602833,2067.5,2067.2,0.022]
[1773336443445,2.48185552,2067.5,2067.2,0.022]
[1773336445250,2.48185552,2067.5,2067.0,6.36]
[1773336445446,2.54785552,2067.5,2066.8,0.022]
[1773336445751,2.54785552,2067.5,2066.4,0.022]
[1773336445752,2.3741119,2067.1,2066.4,0.022]
[1773336446147,2.3741119,2067.1,2066.4,2.74844727]
[1773336446751,2.3741119,2067.1,2066.4,2.75258607]
[1773336449153,2.32179268,2066.9,2066.4,0.0261388]
[1773336449351,2.32179268,2066.9,2066.4,2.75258607]
[1773336449661,2.32179268,2066.9,2066.4,0.0261388]
[1773336450153,2.32179268,2066.9,2066.3,6.337]
[1773336451146,2.32179268,2066.9,2066.3,9.06847847]
[1773336452648,2.56604268,2066.9,2066.3,6.3420312]
[1773336452852,2.32179268,2066.9,2066.3,9.06847847]
[1773336453055,2.56718268,2066.9,2066.3,9.06847847]
[1773336453258,2.32179268,2066.9,2066.3,9.06847847]
[1773336453859,0.24186,2067.0,2066.4,2.72644727]
[1773336454153,2.58471386,2067.0,2066.4,2.72644727]
[1773336456952,0.154,2067.1,2066.4,2.72644727]
[1773336457350,2.48369232,2067.1,2066.4,2.72644727]
[1773336462257,2.72593232,2067.1,2066.4,2.72644727]
[1773336462454,2.48369232,2067.1,2066.4,2.72644727]
[1773336462656,2.72573232,2067.1,2066.4,2.72644727]
[1773336463155,2.48369232,2067.1,2066.4,2.72644727]
[1773336463954,2.72701232,2067.1,2066.4,2.72644727]
[1773336465060,2.25534882,2066.9,2066.4,2.72644727]
[1773336465251,2.50975882,2066.9,2066.3,6.3420312]
[1773336465456,2.51085882,2066.7,2066.2,0.022]
[1773336465855,2.24634765,2066.5,2066.2,0.022]
[1773336466055,2.50441765,2066.5,2066.0,2.59633225]
[1773336466360,2.24693647,2066.3,2066.0,0.022]
[1773336466562,2.24693647,2066.2,2065.7,2.57433225]
[1773336466963,2.50105647,2066.2,2065.7,2.57433225]
[1773336467661,2.50105647,2066.2,2065.7,2.57832545]
[1773336468357,2.24693647,2066.2,2065.7,2.57832545]
[1773336468964,2.24693647,2066.2,2065.7,0.0039932]
[1773336469559,0.24196,2066.1,2065.4,2.59633225]
[1773336469758,2.44126861,2066.1,2065.4,2.59633225]
[1773336470563,2.44126861,2066.1,2065.4,2.60016801]
[1773336472862,2.44126861,2066.1,2065.4,0.02583576]
[1773336473256,2.44126861,2066.1,2065.2,0.022]
[1773336473456,2.44126861,2066.1,2065.2,2.68859234]
[1773336473660,2.68490861,2066.1,2065.2,2.68859234]
[1773336474465,2.44126861,2066.1,2065.2,2.69258907]
[1773336481366,2.44126861,2066.1,2065.0,6.362]
[1773336481367,2.16649846,2065.5,2065.0,2.68859234]
[1773336481567,0.24207,2065.2,2064.8,0.022]
[1773336481771,0.24207,2065.2,2064.8,2.31524032]
[1773336481976,2.7308845,2065.2,2064.8,2.31524032]
[1773336482568,2.73433768,2065.2,2064.4,2.68859234]
[1773336483473,2.73433768,2065.2,2064.6,0.0281995]
[1773336485272,2.98037768,2065.2,2064.4,0.022]
[1773336485478,2.44058158,2064.7,2064.2,2.66659234]
[1773336485973,2.68758158,2064.7,2064.2,2.66659234]
[1773336486368,2.44058158,2064.7,2064.2,2.67137833]
[1773336487780,2.44058158,2064.7,2064.0,2.68859234]
[1773336488676,0.24212,2064.8,2064.0,2.68859234]
[1773336488979,2.65084107,2064.8,2064.0,2.69384752]
[1773336491484,0.24212,2064.8,2064.0,2.69384752]
[1773336492975,2.63340598,2064.8,2064.0,2.69384752]
[1773336494987,2.39105902,2064.3,2063.8,2.68859234]
[1773336495791,2.39105902,2064.3,2063.6,0.022]
[1773336495792,2.39105902,2064.3,2063.6,2.68859234]
[1773336496091,2.39105902,2064.3,2063.6,2.69304456]
[1773336496585,0.24216,2064.4,2063.6,2.69304456]
[1773336497191,2.8060782,2064.4,2063.6,2.69304456]
[1773336497383,2.8060782,2064.4,2063.7,2.66659234]
[1773336497787,6.342,2064.9,2063.7,2.66659234]
[1773336497788,2.5639182,2064.7,2063.7,2.66659234]
[1773336497991,2.5639182,2064.8,2063.7,2.66659234]
[1773336501797,2.6444914,2064.7,2063.7,2.66659234]
[1773336502295,2.6444914,2064.7,2063.9,2.44104862]
[1773336506194,2.4023714,2064.2,2063.7,2.44104862]
[1773336506395,2.4023714,2064.0,2063.6,0.02645222]
[1773336506591,2.4023714,2063.8,2063.4,2.46304862]
[1773336506798,2.6445914,2063.9,2063.4,2.46304862]
[1773336506992,2.4023714,2063.4,2063.0,0.022]
[1773336507191,2.6446614,2063.3,2062.8,2.46304862]
[1773336507592,2.6504296,2063.3,2062.8,2.46833524]
[1773336507898,2.4023714,2063.7,2062.8,2.46833524]
[1773336508296,0.24224,2063.8,2062.8,2.46833524]
[1773336508497,2.6446114,2063.8,2062.8,2.46833524]
[1773336508996,2.6446514,2063.4,2062.8,2.46833524]
[1773336510199,2.4023714,2063.6,2062.8,2.46833524]
[1773336510394,2.40744206,2063.8,2062.8,2.46833524]
[1773336514595,2.4023714,2063.6,2062.8,2.46833524]
[1773336517202,2.4023714,2063.4,2062.8,0.02728662]
[1773336517704,2.4023714,2063.4,2062.8,2.46833524]
[1773336519204,0.24227,2063.5,2062.8,2.46833524]
[1773336519408,2.6446414,2063.5,2062.8,2.46833524]
[1773336521808,2.4023714,2063.7,2062.8,2.46833524]
[1773336522002,2.6446214,2063.6,2062.8,2.46833524]
[1773336526698,0.24225,2063.6,2062.8,2.46833524]
[1773336527204,2.50603238,2063.6,2062.8,2.46833524]
[1773336533415,0.24225,2063.6,2062.8,2.46833524]
[1773336533712,0.24225,2063.6,2062.9,2.38734176]
[1773336534214,0.24225,2063.6,2063.0,2.38734176]
[1773336534513,2.47797896,2063.6,2063.0,2.38734176]
[1773336536209,2.47797896,2063.6,2063.0,8.44634711]
[1773336536411,2.47797896,2063.6,2063.1,2.38734176]
[1773336540317,2.23572896,2063.2,2062.6,2.40934176]
[1773336540515,2.23572896,2063.2,2062.5,2.38734176]
[1773336541110,1.85039188,2063.0,2062.4,2.40934176]
[1773336541310,0.24236,2062.9,2062.4,2.41453877]
[1773336541609,2.09275188,2062.9,2062.4,2.41453877]
[1773336542014,9.9794945,2063.4,2062.4,2.41453877]
[1773336542015,1.8416602,2063.0,2062.4,2.41453877]
[1773336543824,2.0840102,2063.0,2062.4,2.41453877]
[1773336544023,0.24237,2062.8,2062.2,0.022]
[1773336544317,1.73946072,2062.7,2062.2,2.40934176]
[1773336544719,2.81826115,2063.0,2062.2,2.40934176]
[1773336544720,1.73946072,2062.5,2062.2,0.022]
[1773336544917,1.73946072,2062.5,2062.0,2.40934176]
[1773336545115,0.2424,2062.6,2061.6,3.13091601]
[1773336545116,1.83615475,2062.1,2061.6,3.13091601]
[1773336545320,1.83615475,2062.1,2061.7,2.38734176]
[1773336545728,1.83615475,2062.1,2061.6,3.13091601]
[1773336545923,1.83615475,2062.1,2061.6,0.74357425]
[1773336546122,1.84029003,2061.9,2061.2,2.40934176]
[1773336547226,1.84228461,2061.7,2061.2,2.41294853]
[1773336547527,1.84228461,2062.0,2061.2,2.41294853]
[1773336547925,1.83312154,2061.8,2061.0,2.40934176]
[1773336548122,1.83373851,2061.6,2061.0,2.40934176]
[1773336548728,1.83373851,2061.6,2060.8,2.40934176]
[1773336548923,1.83373851,2061.6,2060.8,2.41397565]
[1773336551230,1.74901399,2061.4,2060.8,2.41397565]
[1773336552029,1.74060729,2061.2,2060.6,0.022]
[1773336552726,5.96654,2061.4,2060.4,2.40934176]
[1773336552727,1.74060729,2061.0,2060.4,2.40934176]
[1773336553032,1.74060729,2061.0,2060.4,2.41422868]
[1773336553428,1.74060729,2061.0,2060.4,0.02688692]
[1773336553633,1.83503294,2060.8,2060.2,2.40934176]
[1773336553829,1.83503294,2060.8,2060.2,0.022]
[1773336554027,0.24253,2061.5,2060.2,2.40934176]
[1773336554233,2.06958951,2061.5,2060.2,2.40934176]
[1773336554834,2.06958951,2061.5,2060.2,2.41228295]
[1773336555234,2.06958951,2061.5,2060.5,2.38734176]
[1773336555527,2.06958951,2061.5,2060.4,2.81826115]
[1773336555528,1.72305212,2062.0,2060.8,2.38734176]
[1773336555935,1.72305212,2062.0,2061.0,2.38734176]
[1773336556240,0.24643612,2062.1,2061.3,2.38734176]
[1773336556241,0.00397612,2062.1,2061.3,2.38734176]
[1773336557628,1.64095769,2062.5,2061.5,2.38734176]
[1773336558636,1.6457218,2062.5,2061.5,2.38734176]
[1773336559136,1.62626266,2061.9,2061.1,2.38734176]
[1773336559634,1.67162011,2061.7,2061.1,2.38734176]
[1773336561634,5.96368,2062.4,2061.1,2.38734176]
[1773336561635,1.67186749,2061.9,2061.1,2.38734176]
[1773336561835,1.66200188,2062.2,2061.1,2.38734176]
[1773336562538,1.90523345,2062.1,2061.1,2.38734176]
[1773336565635,0.24245,2062.1,2061.1,2.38734176]
[1773336565840,1.92654921,2062.1,2061.1,2.38734176]
[1773336568436,0.24245,2062.1,2061.3,2.24314969]
[1773336568838,0.24245,2062.1,2061.3,2.48643969]
[1773336569035,1.61222502,2062.3,2061.3,2.24314969]
[1773336570844,1.58118976,2062.5,2061.3,2.24314969]
[1773336571044,1.58378751,2062.3,2061.3,2.24314969]
[1773336572346,2.82302526,2062.5,2061.3,2.24314969]
[1773336572347,0.24244,2062.2,2061.3,2.24314969]
[1773336572852,1.81732769,2062.2,2061.3,2.24314969]
[1773336573251,1.80939382,2061.8,2061.3,2.24314969]
[1773336573547,0.24254,2061.4,2060.7,2.24314969]
[1773336573746,1.80943382,2061.4,2060.7,2.24314969]
[1773336575152,0.24259,2061.0,2060.7,1.87069312]
[1773336575352,0.24812222,2061.0,2060.7,1.87069312]
[1773336576543,1.9033805,2061.4,2060.7,1.87069312]
[1773336576752,2.39403272,2061.5,2060.7,1.87069312]
[1773336577247,0.24253,2061.5,2060.7,1.87069312]
[1773336577443,0.24796432,2061.5,2060.7,1.87069312]
[1773336577643,2.40137533,2061.5,2060.7,1.87069312]
[1773336578947,0.24796432,2061.5,2060.7,1.87069312]
[1773336579145,0.24247,2062.0,2060.8,2.81826115]
[1773336579345,0.24247,2062.0,2060.9,2.24314969]
[1773336579346,2.38043505,2062.0,2060.9,2.24314969]
[1773336580254,2.38553509,2062.0,2060.9,2.24314969]
[1773336580645,0.24757004,2062.0,2060.9,2.24314969]
[1773336581354,0.24757004,2062.0,2061.2,2.24314969]
[1773336582346,2.06368092,2062.5,2061.2,2.24314969]
[1773336582653,2.30610092,2062.5,2061.2,2.24314969]
[1773336582855,0.24242,2062.5,2061.5,2.10704263]
[1773336583456,0.24629276,2062.5,2061.5,2.10704263]
[1773336584857,2.30997368,2062.5,2061.5,2.10704263]
[1773336585058,2.06368092,2062.2,2061.5,2.10704263]
[1773336586959,2.30613092,2062.1,2061.5,2.10704263]
[1773336588560,0.2425,2061.7,2061.1,2.10704263]
[1773336589160,2.30618092,2061.7,2061.1,2.10704263]
[1773336589759,0.2425,2061.7,2061.1,2.10704263]
[1773336590557,4.02256726,2062.5,2061.1,2.10704263]
[1773336590758,2.16432289,2062.5,2061.6,2.18235176]
[1773336591166,2.16045013,2062.3,2061.6,2.18235176]
[1773336591364,2.16045013,2062.3,2060.9,10.07394553]
[1773336591365,2.16045013,2061.7,2061.1,2.18235176]
[1773336592665,2.40297013,2061.6,2061.1,2.18235176]
[1773336596767,2.40297013,2061.6,2060.9,2.18235176]
[1773336597265,0.24252,2061.6,2060.9,2.18235176]
[1773336600674,0.24247,2062.0,2060.9,2.18235176]
[1773336600875,2.16045013,2062.4,2061.1,2.18235176]
[1773336601179,2.16045013,2062.4,2061.2,2.18235176]
[1773336601573,2.40288013,2062.3,2061.2,2.18235176]
[1773336603281,0.00387276,2062.5,2061.4,2.18235176]
[1773336604086,0.00387276,2062.5,2061.5,2.18235176]
[1773336604678,2.16045013,2063.0,2061.7,2.42553176]
[1773336604989,2.16045013,2063.2,2061.9,2.18235176]
[1773336605185,0.24232,2063.3,2061.9,2.18235176]
[1773336605186,0.24232,2063.3,2062.0,2.42482176]
[1773336605381,0.24232,2063.3,2062.1,2.18235176]
[1773336605687,2.16045013,2063.0,2062.1,2.18743141]
[1773336606285,2.40279013,2063.1,2062.1,2.18743141]
[1773336608983,0.24234,2063.1,2062.1,2.18743141]
[1773336609189,2.16627178,2063.3,2062.1,2.18743141]
[1773336609383,2.40277013,2063.2,2062.1,2.18743141]
[1773336612188,2.16045013,2062.9,2062.1,2.18743141]
[1773336612987,2.16045013,2062.7,2062.1,0.00507965]
[1773336613990,2.16045013,2062.5,2062.1,0.00507965]
[1773336614489,2.16045013,2062.5,2062.1,2.18743141]
[1773336614686,2.40285013,2062.6,2062.1,2.18743141]
[1773336614889,0.2424,2062.6,2062.1,2.18743141]
[1773336615093,2.40285013,2062.6,2062.1,2.18743141]
[1773336615293,0.2424,2062.6,2062.1,2.18743141]
[1773336616490,0.24235,2063.1,2062.1,2.18743141]
[1773336616692,2.40280013,2063.1,2062.1,2.18743141]
[1773336616992,2.16045013,2062.6,2062.1,2.18743141]
[1773336617192,2.16045013,2062.6,2062.1,0.00507965]
[1773336618490,2.16045013,2062.4,2062.1,0.00507965]
[1773336618691,2.16045013,2062.4,2061.8,2.18235176]
[1773336618993,2.16045013,2062.8,2061.8,2.18235176]
[1773336619587,2.16045013,2062.4,2061.8,0.00628562]
[1773336619783,0.24243,2062.3,2061.8,2.18863738]
[1773336619989,2.16045013,2062.7,2061.8,2.18863738]
[1773336620791,0.24238,2062.8,2061.8,2.18863738]
[1773336622395,2.03830683,2063.2,2061.8,2.18863738]
[1773336622597,2.28064683,2063.1,2061.8,2.18863738]
[1773336623795,2.03830683,2062.7,2061.8,2.18863738]
[1773336624899,2.03830683,2062.5,2061.8,2.18863738]
[1773336625400,2.28070683,2062.6,2061.8,2.18863738]
[1773336628110,0.2424,2062.6,2061.8,2.18863738]
[1773336630602,2.03830683,2062.7,2061.8,2.18863738]
[1773336631507,0.24235,2063.1,2061.8,2.18863738]
[1773336631806,0.24235,2063.1,2062.0,2.06735151]
[1773336632012,0.24235,2063.1,2062.2,2.06735151]
[1773336632206,0.00582165,2063.3,2062.2,9.67374555]
[1773336632401,1.97289808,2063.3,2062.3,2.06735151]
[1773336633409,0.00582165,2063.3,2062.4,2.06735151]
[1773336633613,0.00582165,2063.3,2062.4,9.67374555]
[1773336633910,0.00582165,2063.3,2062.5,2.06735151]
[1773336633911,1.97289808,2063.3,2062.5,2.06735151]
[1773336634111,1.96707643,2063.1,2062.3,2.06735151]
[1773336634811,0.24232,2063.2,2062.3,2.06735151]
[1773336635314,2.20935643,2063.7,2062.6,2.06735151]
[1773336636010,1.96707643,2063.0,2062.4,2.06735151]
[1773336636207,0.24236,2062.9,2062.4,2.06735151]
[1773336636511,2.2139371,2062.9,2062.4,2.06735151]
[1773336636710,0.24686067,2062.9,2062.4,2.06735151]
[1773336636910,0.00450067,2062.9,2062.4,2.06735151]
[1773336637613,1.96707643,2063.3,2062.4,2.06735151]
[1773336638613,1.9706172,2063.3,2062.4,2.06735151]
[1773336642715,2.10308933,2063.1,2062.4,2.06735151]
[1773336642920,2.10308933,2062.9,2062.4,2.06735151]
[1773336643317,0.00354077,2063.3,2062.2,2.10057723]
[1773336643318,2.10308933,2062.7,2062.2,2.10057723]
[1773336644022,0.24237,2062.8,2062.2,2.10057723]
[1773336644422,2.10308933,2062.9,2062.2,2.10057723]
[1773336644618,2.10308933,2063.1,2062.2,2.10057723]
[1773336644922,2.34541933,2063.2,2062.2,2.10057723]
[1773336647017,2.10308933,2062.8,2062.2,2.10057723]
[1773336647428,2.10308933,2062.6,2061.9,2.10057723]
[1773336647818,0.24238,2062.7,2061.9,2.10057723]
[1773336648024,2.10308933,2063.0,2062.0,2.10057723]
[1773336648624,2.34542933,2063.1,2062.2,2.10057723]
[1773336648820,2.34542933,2063.1,2062.3,2.10057723]
[1773336651729,0.00354077,2063.3,2062.6,2.01232343]
[1773336654225,0.24229,2063.6,2062.6,2.01232343]
[1773336654426,2.22611657,2063.6,2062.6,2.01232343]
[1773336655231,2.23181417,2063.6,2062.6,2.01232343]
[1773336657936,2.23181417,2063.6,2062.7,2.01232343]
[1773336660538,0.0056976,2063.6,2062.9,2.01232343]
[1773336661339,1.98382657,2063.9,2063.0,2.01232343]
[1773336661638,0.814,2064.1,2063.2,2.01232343]
[1773336661842,0.814,2064.1,2063.5,2.01232343]
[1773336662241,1.98382657,2064.0,2063.3,2.01232343]
[1773336662545,1.98979323,2064.0,2063.3,2.01805466]
[1773336667545,1.98382657,2063.8,2063.3,0.00573123]
[1773336668144,1.98979323,2064.0,2063.3,2.01805466]
[1773336668349,1.98382657,2064.4,2063.5,2.01232343]
[1773336668651,1.98382657,2064.7,2063.5,2.01232343]
[1773336668941,1.96182657,2064.7,2064.2,2.03432343]
[1773336669349,1.96780658,2064.7,2064.2,2.03432343]
[1773336670447,1.98382657,2065.1,2064.2,2.03432343]
[1773336670749,1.98382657,2065.1,2064.0,0.022]
[1773336670750,1.98382657,2065.7,2064.4,2.01232343]
[1773336670944,1.96182657,2065.7,2065.0,2.01232343]
[1773336671654,1.96686776,2065.7,2065.0,2.0184595]
[1773336672549,2.00582657,2065.8,2065.0,2.0184595]
[1773336673549,1.98382657,2065.6,2065.0,2.0184595]
[1773336673851,2.23025657,2065.6,2065.0,2.0184595]
[1773336674453,1.98382657,2065.6,2065.0,2.0184595]
[1773336674851,2.22583657,2065.7,2065.0,2.0184595]
[1773336675051,2.47280657,2065.7,2065.0,2.0184595]
[1773336675254,2.23961657,2065.2,2064.9,0.022]
[1773336675552,0.044,2065.4,2064.7,2.03432343]
[1773336676152,2.02782657,2065.4,2064.7,2.03432343]
[1773336676360,2.02782657,2065.4,2064.7,2.03908376]
[1773336677360,2.22612657,2065.2,2064.7,0.02676033]
[1773336677564,1.98382657,2065.2,2064.7,2.03908376]
[1773336678065,2.22654657,2065.2,2064.7,2.03908376]
[1773336678259,1.98382657,2065.2,2064.7,2.03908376]
[1773336678662,2.22638657,2065.2,2064.7,2.03908376]
[1773336679962,0.24205,2065.3,2064.7,2.03908376]
[1773336680360,2.31189627,2065.3,2064.7,2.03908376]
[1773336680559,2.06921627,2065.3,2064.7,2.03908376]
[1773336680765,0.24205,2065.3,2064.7,2.03908376]
[1773336681061,2.07938627,2065.2,2064.7,2.03908376]
[1773336682062,0.24205,2065.3,2064.5,0.022]
[1773336682063,1.82716627,2065.0,2064.5,1.89150357]
[1773336682655,1.82716627,2064.8,2064.3,1.89150357]
[1773336682856,1.82716627,2064.8,2064.3,1.41494185]
[1773336683056,0.08799,2065.1,2063.9,1.89150357]
[1773336683057,1.82716627,2064.4,2063.9,1.89150357]
[1773336683259,2.08756627,2064.4,2063.9,1.89150357]
[1773336683663,1.82716627,2064.4,2063.9,1.89150357]
[1773336683863,2.07130627,2064.4,2063.9,1.89150357]
[1773336684163,2.07130627,2064.4,2063.9,1.89543906]
[1773336685160,0.24215,2064.5,2063.9,1.89543906]
[1773336685370,0.132,2064.8,2063.9,1.89543906]
[1773336685371,1.95916627,2064.8,2063.9,1.89543906]
[1773336687268,1.82716627,2064.6,2063.9,1.89543906]
[1773336687465,2.07002627,2064.6,2063.9,1.89543906]
[1773336687867,1.82716627,2064.6,2063.9,1.89543906]
[1773336688172,2.07178627,2064.6,2063.9,1.89543906]
[1773336689371,2.07519627,2064.4,2063.9,1.89543906]
[1773336691365,0.24215,2064.5,2063.9,1.89543906]
[1773336693367,2.06931627,2064.5,2063.9,1.89543906]
[1773336694872,0.24215,2064.5,2063.9,1.89543906]
[1773336696777,2.06931627,2064.5,2063.9,1.89543906]
[1773336697472,2.06931627,2064.5,2063.9,0.02593549]
[1773336697674,2.07110627,2064.4,2063.9,0.02593549]
[1773336697874,1.82716627,2064.4,2063.9,1.89543906]
[1773336698075,2.07268627,2064.4,2063.9,1.89543906]
[1773336698676,2.06938627,2064.0,2063.7,0.022]
[1773336698873,2.06938627,2064.0,2063.5,1.89150357]
[1773336699077,1.82716627,2063.6,2063.3,1e-05]
[1773336699273,0.24752,2063.1,2062.9,1.89150357]
[1773336699480,0.24752,2063.1,2062.8,1.86950357]
[1773336699679,0.00437552,2063.1,2062.8,1.87301723]
[1773336699880,1.83154179,2063.1,2062.7,1.43109351]
[1773336700079,1.83154179,2063.1,2062.7,0.022]
[1773336700279,1.83154179,2063.1,2062.5,1.43107839]
[1773336700477,1.83154179,2063.1,2062.5,0.022]
[1773336700884,1.83154179,2063.1,2062.5,0.0263892]
[1773336701084,1.83154179,2063.1,2062.5,1.69529899]
[1773336702781,0.00437552,2063.1,2062.5,1.69529899]
[1773336705079,1.94222982,2063.1,2062.5,1.69529899]
[1773336705285,1.94222982,2063.1,2062.5,0.0263892]
[1773336705584,1.94222982,2063.1,2062.5,1.69247083]
[1773336706281,2.18453982,2063.1,2062.5,0.0263892]
[1773336707585,1.9378543,2062.6,2062.1,0.022]
[1773336707785,1.9378543,2062.6,2061.9,1.69649897]
[1773336708686,1.9378543,2062.6,2061.9,1.70203802]
[1773336708887,0.24237,2062.7,2061.9,1.70203802]
[1773336709084,0.00437552,2063.1,2062.0,1.66654753]
[1773336709285,0.00437552,2063.1,2062.3,1.66993956]
[1773336709479,1.94222982,2063.1,2062.3,1.66993956]
[1773336713798,1.93487521,2063.3,2062.3,1.66993956]
[1773336714294,2.17716521,2063.3,2062.3,1.66993956]
[1773336714493,2.17716521,2063.3,2062.0,1.63092164]
[1773336714694,1.93487521,2062.8,2062.0,1.63092164]
[1773336714889,1.93841409,2062.8,2062.0,1.63092164]
[1773336716496,0.24236,2062.7,2061.9,0.02753905]
[1773336716696,1.93487521,2062.6,2061.9,0.02753905]
[1773336717095,0.00353888,2062.8,2061.9,0.02753905]
[1773336717096,1.93841409,2062.8,2061.9,1.63949366]
[1773336717296,0.00353888,2062.8,2061.9,1.63949366]
[1773336718096,1.93487521,2063.1,2062.1,1.60900443]
[1773336718394,1.93487521,2063.6,2062.1,1.60900443]
[1773336718596,1.93487521,2063.4,2062.1,1.60900443]
[1773336718798,1.93487521,2063.4,2062.2,1.60900443]
[1773336719092,1.93487521,2063.0,2062.2,1.60900443]
[1773336720496,1.93487521,2063.3,2062.2,1.60900443]
[1773336721396,0.00516377,2063.4,2062.2,1.60900443]
[1773336721397,1.93487521,2063.1,2062.2,1.60900443]
[1773336722100,1.93487521,2063.3,2062.2,1.60900443]
[1773336722697,1.94003898,2063.4,2062.4,1.59152918]
[1773336723002,1.93487521,2063.2,2062.4,1.59152918]
[1773336723201,1.93487521,2063.0,2062.1,1.62571581]
[1773336723704,0.00516377,2063.4,2061.9,0.02753905]
[1773336723705,1.93487521,2062.8,2061.9,0.02753905]
[1773336723906,5.96078,2063.2,2061.7,0.022]
[1773336723907,1.93487521,2062.6,2061.7,0.022]
[1773336724098,1.93487521,2062.6,2061.7,1.66884435]
[1773336725099,1.93487521,2062.6,2061.7,1.67477482]
[1773336725296,1.93487521,2063.1,2061.7,1.91725482]
[1773336726199,1.93487521,2063.1,2061.8,1.64800416]
[1773336726892,1.93487521,2063.1,2061.9,1.64163683]
[1773336727096,1.93487521,2063.1,2062.0,1.64163683]
[1773336727998,1.93487521,2063.0,2062.0,1.64163683]
[1773336728199,1.93487521,2063.3,2062.2,1.65819001]
[1773336728397,1.93487521,2063.3,2062.3,1.65819001]
[1773336728599,1.93487521,2063.1,2062.3,1.65819001]
[1773336731196,2.17718521,2063.1,2062.1,9.27052094]
[1773336731396,1.93487521,2062.6,2061.9,9.27052094]
[1773336731593,1.93487521,2062.6,2061.9,1.6641269]
[1773336732406,1.93487521,2063.1,2062.0,1.65764728]
[1773336732599,1.93487521,2062.9,2062.0,1.65764728]
[1773336732801,1.93487521,2062.9,2062.0,9.26404132]
[1773336733005,4.03747623,2063.4,2062.3,1.65772639]
[1773336733006,1.93487521,2063.1,2062.3,1.65772639]
[1773336734295,1.93487521,2063.1,2062.1,1.64978484]
[1773336734507,1.93487521,2063.1,2062.2,1.64978484]
[1773336735007,1.93487521,2062.9,2062.2,1.64978484]
[1773336735505,1.93487521,2062.9,2062.0,9.26286229]
[1773336736096,1.93487521,2062.7,2061.9,7.60639404]
[1773336736310,1.93487521,2062.7,2061.8,1.64854941]
[1773336737100,1.93487521,2062.9,2061.9,1.64302061]
[1773336737307,1.93487521,2062.9,2062.0,1.64302061]
[1773336738607,1.93487521,2062.9,2062.1,1.6351267]
[1773336739605,1.93487521,2062.9,2062.2,1.62565436]
[1773336740208,1.93487521,2063.1,2062.3,1.61782262]
[1773336740708,1.86317359,2063.3,2062.5,1.86055898]
[1773336741504,1.86317359,2063.3,2062.5,1.86013898]
[1773336741708,1.86317359,2063.3,2062.5,1.61753898]
[1773336742509,1.86317359,2063.3,2062.3,9.20060449]
[1773336742707,1.86317359,2063.3,2062.4,1.59421045]
[1773336743708,1.86317359,2063.1,2062.2,1.58422248]
[1773336744410,1.86317359,2063.1,2062.3,1.57649448]
[1773336745709,1.86317359,2063.1,2062.1,9.17037299]
[1773336746111,1.86317359,2063.1,2062.2,1.55631059]
[1773336746812,1.86317359,2063.1,2062.1,7.60639404]
[1773336747008,1.86317359,2062.7,2062.0,7.60639404]
[1773336747610,1.86317359,2062.7,2061.8,9.15523909]
[1773336747813,1.86317359,2062.7,2061.9,1.54902068]
[1773336748115,1.86317359,2062.7,2061.8,7.60639404]
[1773336748310,1.86317359,2062.7,2061.7,1.5693293]
[1773336749510,1.86317359,2062.7,2061.8,1.54060014]
[1773336750016,1.86317359,2062.7,2061.9,1.53321957]
[1773336750217,1.86317359,2063.1,2062.0,1.53302678]
[1773336750614,1.86317359,2063.3,2062.1,1.53302678]
[1773336750821,1.86317359,2063.3,2062.5,1.53302678]
[1773336751219,0.00516377,2063.4,2062.6,1.52828946]
[1773336751512,0.00516377,2063.4,2062.7,1.52828946]
[1773336751717,1.86833736,2063.4,2062.7,1.52828946]
[1773336751916,1.86833736,2063.4,2062.5,9.12733575]
[1773336752118,1.86833736,2063.4,2062.5,1.52094171]
[1773336752620,1.86833736,2063.4,2062.4,7.60639404]
[1773336752826,2.11061736,2063.4,2062.4,7.60639404]
[1773336753117,2.11061736,2063.4,2062.4,1.47287974]
[1773336753317,2.11061736,2063.4,2062.2,7.60639404]
[1773336753616,2.11061736,2063.4,2062.2,1.47287974]
[1773336753824,1.86317359,2063.2,2062.2,1.47287974]
[1773336754216,1.86317359,2063.0,2062.2,1.47287974]
[1773336754920,1.86317359,2063.3,2062.3,1.4581681]
[1773336756218,1.86317359,2063.3,2062.5,1.45722537]
[1773336756517,0.00516377,2063.4,2062.5,9.06361941]
[1773336756720,0.00516377,2063.4,2062.8,1.45722537]
[1773336757020,1.86833736,2063.4,2062.8,1.45722537]
[1773336759027,1.86833736,2063.4,2062.9,7.76491852]
[1773336762330,1.86833736,2063.4,2063.0,1.37566015]
[1773336762640,0.374,2063.6,2063.0,1.37566015]
[1773336762833,1.74008385,2063.8,2063.0,1.37566015]
[1773336763131,0.2202,2064.1,2063.0,1.37566015]
[1773336763325,1.74008385,2064.0,2063.6,0.022]
[1773336763732,1.74532822,2064.0,2063.6,0.02559229]
[1773336764033,1.74532822,2064.0,2063.4,0.022]
[1773336764228,1.78932822,2064.0,2063.4,0.022]
[1773336765027,1.78932822,2064.0,2063.4,0.02600311]
[1773336765538,1.74008385,2063.6,2063.0,0.022]
[1773336765935,1.74008385,2063.4,2062.8,6.367]
[1773336766440,1.74008385,2063.4,2062.8,0.02550512]